bitfinex/quotes_SOLUSD_20220226
["timestamp","ask_amount","ask_price","bid_price","bid_amount"]
[1645902845819,23.6456,90.866,90.781,2.60143515]
[1645902846019,23.6456,90.866,90.835,2.0]
[1645902846420,16.5248,90.87,90.835,2.0]
[1645902851131,111.0,90.869,90.835,2.0]
[1645902851426,111.0,90.859,90.835,2.0]
[1645902851927,22.619,90.876,90.835,2.0]
[1645902852933,111.0,90.875,90.775,2.88366781]
[1645902853131,111.0,90.869,90.712,22.5128]
[1645902853334,111.0,90.839,90.721,45.62686575]
[1645902853535,13.43,90.83,90.721,45.62686575]
[1645902853835,111.0,90.821,90.673,72.7994]
[1645902854033,111.0,90.809,90.673,72.7994]
[1645902854238,111.0,90.799,90.673,72.7994]
[1645902854438,13.43,90.79,90.673,72.7994]
[1645902854636,1.95631865,90.789,90.674,2.42534929]
[1645902854840,1.45631865,90.789,90.676,111.0]
[1645902855036,13.43,90.79,90.678,111.0]
[1645902855237,13.43,90.79,90.679,2.56956831]
[1645902856450,29.9681,90.79,90.68,16.5426]
[1645902856650,29.9681,90.79,90.681,113.91001386]
[1645902856855,29.9681,90.79,90.682,2.7616361]
[1645902857055,16.5381,90.79,90.682,2.7616361]
[1645902857251,1.66887812,90.807,90.683,0.25]
[1645902857457,1.66887812,90.807,90.684,111.0]
[1645902857652,1.66887812,90.807,90.685,3.26559146]
[1645902857850,1.66887812,90.807,90.701,111.0]
[1645902858051,1.66887812,90.807,90.702,3.08716686]
[1645902858252,1.66887812,90.807,90.704,111.0]
[1645902858451,1.66887812,90.807,90.705,2.72256644]
[1645902858851,1.66887812,90.807,90.72,16.534]
[1645902862759,16.5348,90.8,90.72,16.534]
[1645902862957,111.0,90.799,90.703,56.39621037]
[1645902863157,1.68191937,90.798,90.703,56.39621037]
[1645902863359,111.0,90.791,90.703,56.39621037]
[1645902863558,13.43,90.78,90.703,56.39621037]
[1645902863756,1.69135073,90.779,90.703,56.39621037]
[1645902863956,16.5405,90.77,90.703,56.39621037]
[1645902864159,1.87045213,90.769,90.703,56.39621037]
[1645902864667,1.87045213,90.769,90.674,46.3913]
[1645902864862,7.26,90.769,90.674,46.3913]
[1645902865065,8.79341689,90.769,90.674,46.3913]
[1645902865460,16.542,90.76,90.674,46.3913]
[1645902865760,16.542,90.76,90.675,60.95048412]
[1645902866560,16.542,90.76,90.68,16.5426]
[1645902867362,45.7225,90.768,90.68,16.5426]
[1645902870463,16.5419,90.76,90.68,16.5426]
[1645902870663,1.83141097,90.759,90.68,16.5426]
[1645902870862,4.19425689,90.767,90.68,16.5426]
[1645902872663,1.44746768,90.767,90.68,16.5426]
[1645902874470,1.50832969,90.788,90.71,16.5358]
[1645902874670,1.49164276,90.815,90.711,57.77573816]
[1645902874867,1.49164276,90.815,90.712,49.0128]
[1645902875072,1.49164276,90.815,90.712,160.0128]
[1645902875269,47.0082,90.816,90.712,49.0128]
[1645902875471,1.71186723,90.815,90.712,49.0128]
[1645902876468,16.5341,90.81,90.73,16.5318]
[1645902877069,1.61381992,90.809,90.73,16.5318]
[1645902877872,16.5346,90.8,90.73,16.5318]
[1645902878271,1.43464817,90.808,90.73,16.5318]
[1645902878475,47.0082,90.816,90.73,24.1018]
[1645902879572,16.533,90.81,90.73,24.1018]
[1645902879774,1.85312026,90.809,90.73,16.5318]
[1645902880172,4.11601428,90.815,90.73,16.5318]
[1645902880676,1.99321079,90.814,90.73,16.5318]
[1645902881596,16.5346,90.8,90.73,16.5318]
[1645902881797,1.7810422,90.799,90.73,16.5318]
[1645902881998,16.5346,90.8,90.73,16.5318]
[1645902882199,1.57389316,90.799,90.73,16.5318]
[1645902882398,4.32068237,90.799,90.712,49.0128]
[1645902882798,1.99321079,90.798,90.712,49.0128]
[1645902882998,16.5367,90.79,90.712,49.0128]
[1645902883201,1.68249895,90.789,90.712,49.0128]
[1645902884000,16.5384,90.78,90.712,49.0128]
[1645902884298,1.79206822,90.779,90.712,49.0128]
[1645902884499,3.78527901,90.779,90.712,49.0128]
[1645902884702,2.74678921,90.778,90.712,49.0128]
[1645902886203,16.5403,90.77,90.66,55.1376]
[1645902886403,1.66138342,90.769,90.683,23.6275]
[1645902886606,3.65459421,90.769,90.683,23.6275]
[1645902886810,1.99321079,90.769,90.683,23.6275]
[1645902887203,1.99321079,90.769,90.684,54.04121668]
[1645902887610,1.70564692,90.759,90.684,54.04121668]
[1645902889211,1.99321079,90.769,90.684,54.04121668]
[1645902889407,1.66230088,90.776,90.684,54.04121668]
[1645902889808,1.66230088,90.776,90.69,16.5404]
[1645902890008,47.7417,90.777,90.691,111.0]
[1645902890609,47.7417,90.777,90.691,113.42417809]
[1645902891013,47.7417,90.777,90.691,2.42417809]
[1645902891607,47.7417,90.777,90.71,16.5356]
[1645902894514,1.65253706,90.8,90.71,16.5356]
[1645902894713,23.5805,90.799,90.712,111.0]
[1645902894913,23.5805,90.799,90.73,16.5318]
[1645902895112,23.5805,90.799,90.73,23.6118]
[1645902896517,23.5805,90.799,90.73,16.5318]
[1645902896815,1.45362815,90.798,90.714,23.1588]
[1645902897017,3.44683894,90.798,90.714,23.1588]
[1645902897216,2.74678921,90.797,90.714,23.1588]
[1645902897616,4.42955335,90.797,90.714,23.1588]
[1645902897917,1.68276414,90.797,90.714,23.1588]
[1645902898114,16.5366,90.79,90.714,23.1588]
[1645902898314,1.4933341,90.789,90.714,23.1588]
[1645902898515,4.24012331,90.789,90.714,23.1588]
[1645902898718,2.74678921,90.789,90.714,23.1588]
[1645902898917,2.74678921,90.788,90.714,23.1588]
[1645902899616,16.5391,90.78,90.714,23.1588]
[1645902900016,1.45049459,90.779,90.69,16.5406]
[1645902900217,51.83870538,90.779,90.69,16.5406]
[1645902900418,4.46733799,90.778,90.691,22.9571]
[1645902900817,1.99321079,90.777,90.691,22.9571]
[1645902901019,1.72054878,90.778,90.7,16.5384]
[1645902901221,48.395,90.779,90.7,23.9884]
[1645902904219,48.395,90.779,90.7,16.5384]
[1645902904420,1.74722488,90.778,90.7,16.5384]
[1645902906222,1.69823348,90.809,90.7,16.5384]
[1645902906427,22.8226,90.797,90.73,16.533]
[1645902906622,1.69823348,90.809,90.731,57.05339971]
[1645902906822,22.5999,90.82,90.732,23.9697]
[1645902906823,1.84668147,90.819,90.732,23.9697]
[1645902907522,16.5327,90.81,90.74,16.5312]
[1645902907922,1.6921378,90.809,90.74,16.5312]
[1645902909925,23.119,90.818,90.74,16.5312]
[1645902910124,5.0,90.91,90.76,16.5275]
[1645902910125,1.55375026,90.842,90.76,16.5275]
[1645902910325,1.99321079,90.846,90.761,48.46044741]
[1645902910731,1.73464346,90.854,90.761,48.46044741]
[1645902910925,112.73464346,90.854,90.762,22.62]
[1645902911125,3.63931326,90.853,90.762,22.62]
[1645902911531,2.74678921,90.852,90.762,22.62]
[1645902911732,5.62397122,90.852,90.762,22.62]
[1645902911926,16.5274,90.84,90.762,22.62]
[1645902912129,112.76515574,90.839,90.741,22.7089]
[1645902912329,1.39745548,90.838,90.709,24.9316]
[1645902912527,177.6,90.833,90.709,24.9316]
[1645902912730,1.80971879,90.832,90.709,24.9316]
[1645902913128,1.83826828,90.83,90.71,49.74645315]
[1645902913329,1.62859297,90.809,90.71,66.28315315]
[1645902913529,22.6021,90.808,90.711,111.0]
[1645902913730,1.46423074,90.807,90.711,111.0]
[1645902913931,22.6021,90.808,90.713,111.0]
[1645902914134,23.4765,90.819,90.714,2.93633456]
[1645902914330,23.4765,90.819,90.716,2.90928725]
[1645902914533,16.5272,90.85,90.73,16.5321]
[1645902914732,22.8162,90.849,90.731,158.4598]
[1645902914931,22.8162,90.849,90.732,2.97529291]
[1645902915132,22.8162,90.849,90.733,111.25]
[1645902915359,22.8162,90.849,90.734,3.08939029]
[1645902915536,22.8162,90.849,90.735,177.85]
[1645902915834,22.8162,90.849,90.736,23.09474676]
[1645902916033,24.5344,90.862,90.739,177.6]
[1645902916236,24.5344,90.862,90.74,3.13620409]
[1645902916434,1.86399598,90.861,90.762,2.98682162]
[1645902916641,24.5344,90.862,90.764,3.0911221]
[1645902916833,24.5344,90.862,90.765,0.25]
[1645902917232,24.5344,90.862,90.767,111.0]
[1645902917432,1.76756964,90.882,90.79,16.5218]
[1645902917634,24.8445,90.883,90.791,134.978]
[1645902917837,24.8445,90.883,90.792,2.69087585]
[1645902918236,24.8445,90.883,90.792,5.18766506]
[1645902918436,24.8445,90.883,90.791,23.978]
[1645902918635,1.44903412,90.882,90.791,23.978]
[1645902918835,1.44903412,90.882,90.811,54.85863784]
[1645902919034,3.44224491,90.882,90.811,54.85863784]
[1645902919436,22.67393816,90.913,90.811,61.35863784]
[1645902919437,1.4620094,90.903,90.811,61.35863784]
[1645902919636,24.2965,90.904,90.812,111.0]
[1645902919838,1.3507201,90.951,90.812,111.0]
[1645902920137,2.74678921,90.935,90.813,138.44798921]
[1645902920336,24.2965,90.934,90.813,138.44798921]
[1645902920536,1.49547138,90.933,90.813,138.44798921]
[1645902920737,24.16940954,90.933,90.813,138.44798921]
[1645902920937,3.64354989,90.932,90.813,135.7012]
[1645902921135,3.64354989,90.932,90.814,0.25]
[1645902921337,2.74678921,90.931,90.814,0.25]
[1645902921542,4.37394798,90.931,90.821,111.0]
[1645902921743,4.37394798,90.931,90.822,7.26685118]
[1645902921937,1.62715877,90.931,90.823,111.0]
[1645902922137,1.86713495,90.949,90.825,180.02583249]
[1645902922337,1.86713495,90.949,90.824,52.8418]
[1645902922338,2.74678921,90.953,90.827,177.6]
[1645902922541,1.62957866,90.988,90.854,66.6]
[1645902922736,22.67393816,90.986,90.857,111.0]
[1645902922941,22.67393816,90.986,90.86,66.6]
[1645902923137,22.67393816,90.986,90.861,4.649]
[1645902923337,1.38476172,90.985,90.861,7.39578921]
[1645902923536,2.74678921,90.986,90.861,7.39578921]
[1645902923736,2.74678921,90.986,90.862,2.74678921]
[1645902923936,2.74678921,90.986,90.863,4.649]
[1645902924340,1.67338988,90.985,90.864,2.74678921]
[1645902924538,1.67338988,90.985,90.89,16.4995]
[1645902924740,50.13042737,90.984,90.891,60.58618735]
[1645902924938,1.42296885,90.983,90.891,56.18818735]
[1645902925140,26.84369622,90.983,90.891,56.18818735]
[1645902925339,1.45066194,90.982,90.891,56.18818735]
[1645902925539,4.19745115,90.982,90.891,56.18818735]
[1645902925739,22.67393816,90.981,90.891,56.18818735]
[1645902925940,1.47497279,90.98,90.892,24.2867]
[1645902926140,1.47497279,90.98,90.9,16.5029]
[1645902926339,22.67393816,90.995,90.901,4.398]
[1645902926541,27.16018921,90.997,90.901,4.398]
[1645902926744,24.4134,90.997,90.901,4.398]
[1645902927144,24.4134,90.997,90.901,7.14478921]
[1645902927646,24.4134,90.997,90.921,50.11790914]
[1645902927844,1.99321079,91.007,90.921,56.87790914]
[1645902928448,1.99321079,91.007,90.922,4.397]
[1645902928648,22.658,91.029,90.922,7.14378921]
[1645902928849,22.658,91.029,90.924,2.6072302]
[1645902929047,22.67393816,91.027,90.94,16.49184617]
[1645902929251,1.61104823,91.026,90.94,16.49184617]
[1645902929450,1.05593448,90.981,90.941,4.397]
[1645902929848,1.05593448,90.981,90.927,4.397]
[1645902930771,1.05593448,90.981,90.926,47.3966]
[1645902930971,1.05593448,90.981,90.921,50.11790914]
[1645902931372,1.05593448,90.981,90.922,4.397]
[1645902931979,1.05593448,90.981,90.921,47.11790914]
[1645902932172,1.05593448,90.981,90.921,51.51490914]
[1645902932374,1.05593448,90.981,90.922,4.397]
[1645902933076,1.05593448,90.981,90.93,16.4955]
[1645902933976,1.05593448,90.981,90.921,47.11790914]
[1645902934583,2.74678921,90.98,90.921,47.11790914]
[1645902935175,4.33568931,90.995,90.921,47.11790914]
[1645902935575,2.74678921,90.995,90.921,47.11790914]
[1645902935976,1.69405572,91.01,90.921,47.11790914]
[1645902936178,22.67393816,91.006,90.887,4.397]
[1645902936377,2.74678921,90.993,90.863,52.0159]
[1645902936577,16.5007,90.99,90.89,16.501]
[1645902936778,48.99998976,90.989,90.89,16.501]
[1645902936977,1.35314698,90.988,90.89,16.501]
[1645902937281,3.34635777,90.988,90.891,62.77781758]
[1645902937477,2.74678921,90.987,90.891,58.37981758]
[1645902937876,2.74678921,90.987,90.892,4.398]
[1645902938478,16.5031,90.98,90.87,16.505]
[1645902938679,1.46002617,90.979,90.863,47.6179]
[1645902938979,24.13396433,90.979,90.863,47.6179]
[1645902939179,15.94693057,90.978,90.863,47.6179]
[1645902939479,1.67396963,90.977,90.87,16.5061]
[1645902939680,2.74678921,90.978,90.871,4.399]
[1645902939882,22.6247,90.976,90.871,4.399]
[1645902940077,1.37679821,90.975,90.871,4.399]
[1645902940280,1.37679821,90.975,90.865,4.399]
[1645902940586,24.61791079,90.976,90.865,4.399]
[1645902940587,1.4706728,90.969,90.865,4.399]
[1645902940778,1.4706728,90.969,90.864,43.49259068]
[1645902940979,3.35317656,90.974,90.864,43.49259068]
[1645902941179,2.74678921,90.968,90.864,43.49259068]
[1645902941878,1.84503051,90.959,90.864,43.49259068]
[1645902942078,22.67393816,90.967,90.864,43.49259068]
[1645902942079,1.48138652,90.957,90.864,43.49259068]
[1645902942678,16.5686496,90.956,90.864,43.49259068]
[1645902942878,16.513,90.93,90.864,43.49259068]
[1645902943080,1.6106812,90.929,90.864,43.49259068]
[1645902945483,1.6106812,90.929,90.851,4.4]
[1645902945686,16.5128,90.92,90.832,4.4]
[1645902945882,1.69533538,90.919,90.832,4.4]
[1645902946082,1.69533538,90.919,90.831,46.446]
[1645902946483,26.23413538,90.919,90.833,54.95175481]
[1645902946683,1.52876649,90.918,90.833,54.95175481]
[1645902947085,1.52876649,90.918,90.834,2.74678921]
[1645902947486,1.52876649,90.918,90.84,16.5121]
[1645902949087,24.5388,90.919,90.85,16.5096]
[1645902949285,1.48365151,90.939,90.853,111.0]
[1645902949486,23.4492,90.957,90.853,111.0]
[1645902949684,1.71438887,90.956,90.854,133.7455]
[1645902949885,1.71438887,90.956,90.854,136.49228921]
[1645902950288,1.71438887,90.956,90.855,2.74678921]
[1645902950485,1.71438887,90.956,90.86,16.5071]
[1645902950984,1.71438887,90.956,90.861,2.74678921]
[1645902951784,1.71438887,90.956,90.87,16.5065]
[1645902951985,16.5074,90.95,90.871,51.20501694]
[1645902952188,1.40269567,90.949,90.871,51.20501694]
[1645902953388,1.40269567,90.949,90.88,16.5055]
[1645902954592,23.4492,90.957,90.88,16.5055]
[1645902954593,1.81216004,90.956,90.88,16.5055]
[1645902960495,16.5072,90.95,90.871,51.20501694]
[1645902960699,1.48126428,90.949,90.871,51.20501694]
[1645902961197,1.99321079,90.949,90.871,51.20501694]
[1645902961398,16.5094,90.94,90.849,2.74678921]
[1645902961599,66.6,90.935,90.76,47.3606]
[1645902961799,1.73905489,90.909,90.775,16.6186]
[1645902962000,1.63074223,90.907,90.776,23.491]
[1645902962297,1.63074223,90.907,90.79,55.0525]
[1645902962497,1.63074223,90.907,90.81,16.5175]
[1645902962697,47.5342,90.908,90.811,81.18190202]
[1645902962998,47.5342,90.908,90.812,2.49280755]
[1645902963796,47.5342,90.908,90.84,16.5101]
[1645902963997,47.5342,90.908,90.841,49.39945608]
[1645902964196,1.4053874,90.907,90.841,49.39945608]
[1645902965598,47.5342,90.908,90.811,23.4558]
[1645902966002,47.5342,90.908,90.812,2.3385721]
[1645902967499,47.5342,90.908,90.84,16.5107]
[1645902968101,1.6304157,90.961,90.84,16.5107]
[1645902968300,1.83584095,90.959,90.841,23.6014]
[1645902968700,1.57499408,90.949,90.86,16.5085]
[1645902969102,1.55507789,90.947,90.861,23.6014]
[1645902971405,1.55507789,90.947,90.87,16.5066]
[1645902972206,16.5093,90.94,90.82,55.0359]
[1645902972406,1.8624843,90.939,90.85,16.5087]
[1645902972606,4.50513699,90.947,90.85,16.5087]
[1645902973609,1.48845022,90.929,90.85,16.5087]
[1645902973810,23.8391,90.928,90.85,16.5087]
[1645902974008,1.62468725,90.927,90.85,16.5087]
[1645902974207,1.62468725,90.927,90.83,16.5124]
[1645902974909,1.84800519,90.919,90.83,16.5124]
[1645902975107,112.84800519,90.919,90.822,23.0511]
[1645902975307,3.71485352,90.918,90.81,16.516]
[1645902975507,5.40504886,90.918,90.81,16.516]
[1645902975708,5.40504886,90.918,90.811,56.92707301]
[1645902975709,2.74678921,90.917,90.811,56.92707301]
[1645902975909,16.5167,90.9,90.811,56.92707301]
[1645902976107,23.258,90.899,90.811,56.92707301]
[1645902976308,1.6225213,90.898,90.811,56.92707301]
[1645902976713,2.74678921,90.897,90.811,56.92707301]
[1645902977110,16.5184,90.89,90.811,56.92707301]
[1645902977311,23.7644,90.897,90.811,56.92707301]
[1645902977712,1.75715102,90.896,90.811,56.92707301]
[1645902978516,1.75715102,90.896,90.82,16.5158]
[1645902978716,23.7644,90.897,90.82,16.5158]
[1645902980236,1.47999987,90.896,90.82,16.5158]
[1645902980434,23.7644,90.897,90.82,16.5158]
[1645902980834,25.22767794,90.897,90.82,16.5158]
[1645902981134,23.7644,90.897,90.82,16.5158]
[1645902981335,1.44732818,90.896,90.811,56.92707301]
[1645902981536,4.19411739,90.896,90.811,56.92707301]
[1645902981934,2.74678921,90.895,90.811,56.92707301]
[1645902982436,16.5183,90.89,90.811,56.92707301]
[1645902982637,1.5644607,90.889,90.811,56.92707301]
[1645902983336,1.40854916,90.887,90.811,56.92707301]
[1645902983537,1.86663646,90.879,90.811,56.92707301]
[1645902983940,24.69072158,90.888,90.811,56.92707301]
[1645902983941,1.72832383,90.887,90.811,56.92707301]
[1645902984538,2.74678921,90.886,90.811,56.92707301]
[1645902984740,2.74678921,90.886,90.771,23.179]
[1645902984741,16.5226,90.87,90.771,23.179]
[1645902984939,1.59113946,90.868,90.772,24.0208]
[1645902985139,22.719,90.869,90.773,0.25]
[1645902985339,1.37627214,90.868,90.772,24.0208]
[1645902985739,1.37627214,90.868,90.773,43.55991243]
[1645902986146,1.37627214,90.868,90.78,16.5219]
[1645902986741,1.37627214,90.868,90.781,111.0]
[1645902987143,1.37627214,90.868,90.773,43.55991243]
[1645902987341,22.719,90.869,90.801,47.5058252]
[1645902987743,1.40772671,90.868,90.801,47.5058252]
[1645902990847,2.74678921,90.896,90.802,0.25]
[1645902990848,4.27716879,90.896,90.802,0.25]
[1645902991146,24.0339,90.909,90.802,0.25]
[1645902991147,24.0339,90.909,90.802,164.47385612]
[1645902991346,24.0339,90.909,90.81,16.5176]
[1645902991547,24.0339,90.909,90.812,2.99881425]
[1645902991845,24.64604486,90.943,90.814,177.6]
[1645902992049,24.64604486,90.943,90.813,24.6372]
[1645902992050,26.53805928,90.942,90.816,111.0]
[1645902992246,1.74715839,90.941,90.817,3.16784429]
[1645902992445,1.74715839,90.941,90.841,111.0]
[1645902992644,1.74715839,90.941,90.843,111.0]
[1645902993447,1.74715839,90.941,90.86,16.508]
[1645902993650,1.74715839,90.941,90.861,47.31867095]
[1645902994252,1.74715839,90.941,90.862,111.0]
[1645902994553,1.74715839,90.941,90.87,16.5075]
[1645902996650,24.7904,90.942,90.87,16.5075]
[1645902999058,1.39196906,90.941,90.87,16.5075]
[1645902999457,1.39196906,90.941,90.861,47.31867095]
[1645902999856,4.13875827,90.941,90.861,47.31867095]
[1645903000558,16.5091,90.94,90.861,47.31867095]
[1645903000759,1.40454395,90.939,90.861,47.31867095]
[1645903000959,114.39096553,90.939,90.861,47.31867095]
[1645903001158,1.72051825,90.938,90.842,47.87]
[1645903001361,4.46730746,90.938,90.842,47.87]
[1645903001558,1.98642158,90.937,90.842,47.87]
[1645903002162,1.98642158,90.937,90.843,43.04430786]
[1645903002558,1.35417245,90.929,90.843,43.04430786]
[1645903002958,2.74678921,90.928,90.843,43.04430786]
[1645903003160,2.74678921,90.928,90.842,47.87]
[1645903003358,2.74678921,90.928,90.82,16.5152]
[1645903003559,111.0,90.919,90.82,16.5152]
[1645903003761,111.0,90.917,90.82,16.5152]
[1645903003960,1.3942025,90.916,90.82,16.5152]
[1645903004260,4.14099171,90.916,90.821,56.20321317]
[1645903004663,2.74678921,90.915,90.821,56.20321317]
[1645903005564,16.5173,90.9,90.821,56.20321317]
[1645903005764,1.41484691,90.899,90.821,56.20321317]
[1645903007466,16.5144,90.91,90.83,16.5148]
[1645903007666,1.79858624,90.909,90.83,16.5148]
[1645903009469,23.7784,90.918,90.822,24.1817]
[1645903009470,16.5166,90.9,90.822,24.1817]
[1645903009673,1.74657778,90.899,90.822,24.1817]
[1645903009873,2.74678921,90.908,90.822,24.1817]
[1645903010170,1.39071412,90.916,90.822,24.1817]
[1645903010369,3.3771357,90.916,90.822,24.1817]
[1645903010571,2.74678921,90.915,90.822,24.1817]
[1645903010968,1.69600695,90.909,90.822,24.1817]
[1645903012573,1.50159496,90.899,90.822,24.1817]
[1645903013294,1.98642158,90.898,90.822,24.1817]
[1645903013793,1.54165863,90.904,90.822,24.1817]
[1645903014495,2.74678921,90.903,90.822,24.1817]
[1645903015094,1.54165863,90.904,90.822,24.1817]
[1645903015496,16.5165,90.9,90.822,24.1817]
[1645903015698,1.5202789,90.899,90.822,24.1817]
[1645903015899,119.0102789,90.899,90.806,24.7096]
[1645903016196,1.53609368,90.898,90.806,24.7096]
[1645903016395,1.53609368,90.898,90.791,24.3164]
[1645903016596,3.52251526,90.898,90.791,24.3164]
[1645903016794,2.74678921,90.897,90.792,52.72796548]
[1645903017500,111.0,90.889,90.792,52.72796548]
[1645903017695,111.0,90.887,90.792,52.72796548]
[1645903017895,1.41113336,90.886,90.792,52.72796548]
[1645903018295,23.2587,90.885,90.792,52.72796548]
[1645903018496,16.5228,90.87,90.792,52.72796548]
[1645903018795,1.78879557,90.869,90.792,52.72796548]
[1645903018995,24.3435,90.869,90.792,52.72796548]
[1645903019195,1.87042901,90.868,90.792,52.72796548]
[1645903020196,24.3435,90.869,90.8,16.5206]
[1645903020900,1.82443688,90.911,90.802,2.71112646]
[1645903021099,1.82931329,90.947,90.811,171.73992307]
[1645903021300,2.74678921,90.939,90.813,111.0]
[1645903021899,2.74678921,90.939,90.814,22.8283]
[1645903022398,113.74678921,90.939,90.814,22.8283]
[1645903022602,16.5122,90.93,90.83,16.5133]
[1645903022898,1.85687771,90.929,90.831,57.17619239]
[1645903023102,1.3679056,90.937,90.831,57.17619239]
[1645903023499,2.74678921,90.936,90.832,23.6269]
[1645903024103,1.72116207,90.934,90.84,16.5134]
[1645903024301,1.72116207,90.934,90.84,24.6034]
[1645903025107,2.74678921,90.933,90.84,24.6034]
[1645903025301,2.74678921,90.933,90.84,16.5134]
[1645903025502,16.5112,90.93,90.84,16.5134]
[1645903025704,1.58808179,90.929,90.84,16.5134]
[1645903026302,121.93462149,90.928,90.832,23.6269]
[1645903026503,1.84974543,90.927,90.8,55.0527]
[1645903026707,138.24444723,90.927,90.813,24.3615]
[1645903026904,31.23325459,90.926,90.813,24.3615]
[1645903027102,1.5053696,90.925,90.813,24.3615]
[1645903027304,1.56596756,90.919,90.814,46.99320943]
[1645903027606,1.56596756,90.919,90.82,16.5169]
[1645903027803,2.74678921,90.918,90.82,16.5169]
[1645903028404,23.4371,90.917,90.82,16.5169]
[1645903028602,1.48294137,90.916,90.82,16.5169]
[1645903028802,1.48294137,90.916,90.82,33.3131]
[1645903029202,1.48294137,90.916,90.821,111.0]
[1645903029402,1.48294137,90.916,90.82,16.5169]
[1645903030502,16.5146,90.91,90.82,16.5169]
[1645903030803,4.21620215,90.909,90.82,16.5169]
[1645903031204,1.98642158,90.908,90.82,16.5169]
[1645903031403,23.9048,90.907,90.82,16.5169]
[1645903031603,1.66635754,90.906,90.82,16.5169]
[1645903031802,4.41314675,90.906,90.82,16.5169]
[1645903032004,16.5176,90.9,90.82,16.5169]
[1645903032205,1.66635754,90.906,90.82,16.5169]
[1645903032405,1.66635754,90.906,90.82,24.6169]
[1645903032605,23.9048,90.907,90.82,24.6169]
[1645903033409,1.42760836,90.906,90.82,24.6169]
[1645903033707,1.42760836,90.906,90.82,16.5169]
[1645903034509,2.74678921,90.905,90.82,16.5169]
[1645903034911,1.43202328,90.899,90.82,16.5169]
[1645903035412,2.74678921,90.898,90.813,24.3615]
[1645903035610,112.40322956,90.897,90.813,24.3615]
[1645903035812,1.56156403,90.896,90.813,24.3615]
[1645903036009,3.54798561,90.896,90.813,24.3615]
[1645903036309,1.67843482,90.894,90.813,24.3615]
[1645903036510,1.49600083,90.889,90.813,24.3615]
[1645903037011,2.74678921,90.888,90.813,24.3615]
[1645903037914,16.5205,90.88,90.8,16.5191]
[1645903038110,111.0,90.879,90.78,16.5231]
[1645903038312,1.6605097,90.878,90.78,16.5231]
[1645903038911,4.18787147,90.877,90.781,43.73214882]
[1645903039134,1.66674194,90.859,90.781,43.73214882]
[1645903039312,23.9472,90.859,90.77,47.3111]
[1645903039513,1.63000328,90.858,90.77,47.3111]
[1645903039713,4.37679249,90.858,90.77,47.3111]
[1645903039912,4.47640394,90.857,90.76,16.5263]
[1645903040114,16.5276,90.84,90.743,24.2352]
[1645903040317,136.89143916,90.839,90.744,55.21223132]
[1645903040619,1.3693889,90.838,90.744,55.21223132]
[1645903041012,1.86240205,90.836,90.744,55.21223132]
[1645903041613,16.5324,90.82,90.744,55.21223132]
[1645903041813,16.5324,90.82,90.743,24.2352]
[1645903041814,1.76060954,90.819,90.743,24.2352]
[1645903042013,4.50739875,90.819,90.743,24.2352]
[1645903042212,2.74678921,90.818,90.743,24.2352]
[1645903043015,16.5327,90.81,90.743,24.2352]
[1645903043218,1.70382183,90.809,90.743,24.2352]
[1645903043420,8.15642158,90.809,90.72,16.5336]
[1645903043615,1.68791218,90.807,90.693,46.8438]
[1645903043814,2.74678921,90.808,90.695,2.74678921]
[1645903044015,16.5346,90.8,90.695,2.74678921]
[1645903044214,1.49547406,90.799,90.696,19.88885171]
[1645903044414,47.66687406,90.799,90.696,19.88885171]
[1645903044614,46.1714,90.799,90.696,111.0]
[1645903044815,1.84106693,90.798,90.697,5.73267313]
[1645903045216,1.84106693,90.798,90.698,2.74678921]
[1645903045615,1.84106693,90.798,90.7,16.5389]
[1645903046017,1.84106693,90.798,90.701,2.74678921]
[1645903047017,46.1714,90.799,90.72,16.534]
[1645903047217,46.1714,90.799,90.722,55.70980547]
[1645903047816,16.5326,90.81,90.723,111.0]
[1645903048016,1.67266276,90.829,90.725,113.60992491]
[1645903048017,23.6802,90.829,90.725,113.60992491]
[1645903048220,23.6802,90.829,90.724,26.63818921]
[1645903048521,1.77266859,90.828,90.724,26.63818921]
[1645903048719,1.77266859,90.828,90.725,24.8997]
[1645903049420,1.77266859,90.828,90.725,27.64648921]
[1645903049619,16.5311,90.82,90.741,54.42869566]